[Event "NED-ch U20 Girls 2019"]
[Site "Assen"]
[Date "2019.04.28"]
[Round "1.1"]
[White "Basa, Manasvita"]
[Black "Warnaar, Alisha"]
[Result "0-1"]
[ECO "B45"]
[WhiteElo "1532"]
[BlackElo "1910"]
[Annotator "NA"]
[PlyCount "66"]
[EventDate "2019.04.28"]
[EventType "swiss"]
[EventCountry "NED"]
[SourceTitle "playchess.com"]
[Source "ChessBase"]
[SourceQuality "1"]
[TimeControl "40/5400+30:1800+30"]

1. e4 {[%emt 0:00:00]} c5 {[%emt 0:00:00]} 2. a3 {[%emt 0:00:00]} e6 {[%emt 0:00:46]} 3. Nf3 {[%emt 0:01:54]} Nc6 {[%emt 0:01:28]} 4. d4 {[%emt 0:00:21]} cxd4 {[%emt 0:00:17]} 5. Nxd4 {[%emt 0:00:13]} Nf6 {[%emt 0:05:04]} 6. Nc3 {[%emt 0:01:01]} Bc5 {[%emt 0:07:01]} 7. Be3 {[%emt 0:01:56]} Qb6 {[%emt 0:04:18]} 8. Na4 {[%emt 0:05:44]} Qa5+ {[%emt 0:02:29]} 9. c3 {[%emt 0:00:12]} Bxd4 {[%emt 0:03:43]} 10. Bxd4 {[%emt 0:00:27]} e5 {[%emt 0:02:56]} 11. Be3 {[%emt 0:03:24]} Nxe4 {[%emt 0:03:44]} 12. b4 {[%emt 0:02:38]} Qc7 {[%emt 0:05:15]} 13. Qg4 {[%emt 0:04:02]} d5 {[%emt 0:09:04]} 14. Qxg7 {[%emt 0:00:33]} Rf8 {[%emt 0:00:06]} 15. f3 {[%emt 0:02:37]} Nd6 {[%emt 0:00:24]} 16. g4 {[%emt 0:14:45]} Qe7 {[%emt 0:06:01]} 17. b5 {[%emt 0:23:49]} f6 {[%emt 0:09:06]} 18. Qxe7+ {[%emt 0:10:47]} Nxe7 {[%emt 0:00:14]} 19. b6 {[%emt 0:00:40]} Bd7 {[%emt 0:06:10]} 20. Nc5 {[%emt 0:01:49]} axb6 {[%emt 0:00:07]} 21. Nxd7 {[%emt 0:00:23]} Kxd7 {[%emt 0:00:06]} 22. Bxb6 {[%emt 0:00:11]} Rfc8 {[%emt 0:00:17]} 23. Kd2 {[%emt 0:09:23]} Rc6 {[%emt 0:00:22]} 24. Bf2 {[%emt 0:00:28]} Rac8 {[%emt 0:00:13]} 25. Rc1 {[%emt 0:00:53]} d4 {[%emt 0:00:32]} 26. Bd3 {[%emt 0:01:18]} Rxc3 {[%emt 0:02:37]} 27. a4 {[%emt 0:01:11]} Nc4+ {[%emt 0:03:46]} 28. Ke2 {[%emt 0:00:38]} Nb2 {[%emt 0:00:48]} 29. Rxc3 {[%emt 0:01:00]} Rxc3 {[%emt 0:00:15]} 30. Bxh7 {[%emt 0:02:08]} d3+ {[%emt 0:01:52]} 31. Ke3 {[%emt 0:02:42]} Nc4+ {[%emt 0:00:22]} 32. Ke4 {[%emt 0:01:09]} d2 {[%emt 0:00:09]} 33. Bc5 {[%emt 0:04:12]} Rc1 {[%emt 0:25:25] Kd4 [%emt 00:00:03]} 0-1

[Event "NED-ch U20 Girls 2019"]
[Site "Assen"]
[Date "2019.04.28"]
[Round "1.2"]
[White "Koning, Femke"]
[Black "Duson, Robin"]
[Result "0-1"]
[ECO "B22"]
[WhiteElo "1566"]
[BlackElo "1981"]
[Annotator "NA"]
[PlyCount "71"]
[EventDate "2019.04.28"]
[EventType "swiss"]
[EventCountry "NED"]
[SourceTitle "playchess.com"]
[Source "ChessBase"]
[SourceQuality "1"]
[TimeControl "40/5400+30:1800+30"]

1. e4 {[%emt 0:00:00]} c5 {[%emt 0:00:00]} 2. Nf3 {[%emt 0:00:05]} e6 {[%emt 0:00:00]} 3. c3 {[%emt 0:02:20]} d5 {[%emt 0:00:04]} 4. exd5 {[%emt 0:01:54]} Qxd5 {[%emt 0:00:08]} 5. d4 {[%emt 0:02:58]} Nf6 {[%emt 0:01:20]} 6. Be3 {[%emt 0:03:13]} cxd4 {[%emt 0:04:48]} 7. Qxd4 {[%emt 0:03:43] B22: Sicilian: 2 c3} Nc6 {[%emt 0:05:56]} 8. Qxd5 {[%emt 0:01:05]} Nxd5 {[%emt 0:00:13]} 9. Bd4 {[%emt 0:08:10]} Nxd4 {[%emt 0:00:12]} 10. Nxd4 {[%emt 0:00:02]} a6 {[%emt 0:00:51]} 11. Nd2 {[%emt 0:01:10]} Bd7 $146 {[%emt 0:09:50]} ({Predecessor:} 11... Bc5 12. N2f3 Ke7 13. g3 Rd8 14. O-O-O Bd7 {0-1 (49) Denisik,S (1947)-Landa,K (2625) Minsk 2015}) 12. N2f3 {[%emt 0:02:30]} Bd6 {[%emt 0:04:39]} 13. Bc4 {[%emt 0:04:27]} Nf4 {[%emt 0:07:53]} 14. O-O {[%emt 0:03:25]} Rc8 {[%emt 0:07:39]} 15. Bb3 {[%emt 0:00:35]} O-O {[%emt 0:05:45]} 16. Rad1 {[%emt 0:04:59]} Rfd8 {[%emt 0:02:47]} 17. Rfe1 {[%emt 0:02:09]} Bb8 {[%emt 0:09:19]} 18. Bc2 {[%emt 0:09:03]} Be8 {[%emt 0:04:45]} 19. Be4 {[%emt 0:11:22]} Nd5 $16 {[%emt 0:02:11]} (19... Bc7 $11 {keeps the balance.}) 20. Rc1 {[%emt 0:16:28]} b5 {[%emt 0:02:17]} 21. Rcd1 {[%emt 0:05:38]} g6 {[%emt 0:01:35]} 22. Nc2 {[%emt 0:00:29]} Bc6 {[%emt 0:04:01]} 23. Nfd4 {[%emt 0:06:20]} Bb7 {[%emt 0:00:14]} 24. Nb4 {[%emt 0:00:57]} a5 {[%emt 0:06:14]} 25. Nxd5 {[%emt 0:00:35]} Bxd5 {[%emt 0:00:07]} 26. Bxd5 {[%emt 0:01:15]} Rxd5 {[%emt 0:00:09]} 27. Nb3 {[%emt 0:04:16]} Rxd1 {[%emt 0:07:59]} 28. Rxd1 {[%emt 0:00:01]} a4 {[%emt 0:00:33]} 29. Nd4 {[%emt 0:01:32]} Rd8 {[%emt 0:00:58]} 30. Re1 {[%emt 0:01:22]} Rd5 {[%emt 0:00:38]} 31. Nc6 {[%emt 0:00:26]} Bd6 {[%emt 0:00:04]} 32. g3 {[%emt 0:01:25]} Rd2 {[%emt 0:01:08]} 33. Kf1 {[%emt 0:01:51]} Rxb2 {[%emt 0:00:33]} 34. Rd1 {[%emt 0:00:09]} Bc5 {[%emt 0:00:58]} 35. Nd4 {[%emt 0:00:53]} Rxa2 {[%emt 0:02:21]} 36. Ne2 {[%emt 0:00:00]} 0-1

[Event "NED-ch U20 Girls 2019"]
[Site "Assen"]
[Date "2019.04.28"]
[Round "1.3"]
[White "Van de Poel, Wyona"]
[Black "Monteny, Pascalle"]
[Result "1/2-1/2"]
[ECO "C45"]
[WhiteElo "1584"]
[BlackElo "1433"]
[Annotator "NA"]
[PlyCount "66"]
[EventDate "2019.04.28"]
[EventType "swiss"]
[EventCountry "NED"]
[SourceTitle "playchess.com"]
[Source "ChessBase"]
[SourceQuality "1"]
[TimeControl "40/5400+30:1800+30"]

1. e4 {[%emt 0:00:00]} e5 {[%emt 0:00:00]} 2. Nf3 {[%emt 0:00:00]} Nc6 {[%emt 0:00:00]} 3. d4 {[%emt 0:00:00]} exd4 {[%emt 0:00:05]} 4. Nxd4 {[%emt 0:00:05]} Bc5 {[%emt 0:00:23]} 5. Be3 {[%emt 0:00:18]} Qf6 {[%emt 0:00:54]} 6. c3 {[%emt 0:00:52]} Nge7 {[%emt 0:01:16]} 7. Bc4 {[%emt 0:00:33]} Ne5 {[%emt 0:05:35]} 8. Be2 {[%emt 0:01:19]} Bb6 {[%emt 0:09:32]} 9. O-O {[%emt 0:08:55]} Qg6 {[%emt 0:04:26]} 10. Nd2 {[%emt 0:07:37]} O-O {[%emt 0:22:36]} 11. Bh5 {[%emt 0:19:35]} Qd6 {[%emt 0:17:16]} 12. f4 {[%emt 0:06:22]} Bxd4 {[%emt 0:23:02]} 13. Bxd4 {[%emt 0:07:01]} N5c6 {[%emt 0:05:47]} 14. Be3 {[%emt 0:06:28]} Ng6 {[%emt 0:03:49]} 15. Nb3 {[%emt 0:03:01]} Qxd1 {[%emt 0:00:39]} 16. Raxd1 {[%emt 0:00:06]} d6 {[%emt 0:00:29]} 17. f5 {[%emt 0:01:10]} Nge5 {[%emt 0:00:23]} 18. Nd4 {[%emt 0:04:58]} a6 {[%emt 0:00:55]} 19. f6 {[%emt 0:04:05]} g6 {[%emt 0:00:50]} 20. Be2 {[%emt 0:00:24]} Re8 {[%emt 0:00:40]} 21. Nxc6 {[%emt 0:02:23]} Nxc6 {[%emt 0:00:13]} 22. Bd3 {[%emt 0:01:37]} Ne5 {[%emt 0:00:52]} 23. Bc2 {[%emt 0:00:38]} Bd7 {[%emt 0:00:56]} 24. h3 {[%emt 0:01:06]} Bc6 {[%emt 0:00:19]} 25. b3 {[%emt 0:01:25]} Nd7 {[%emt 0:00:18]} 26. Rf4 {[%emt 0:02:09]} Ne5 {[%emt 0:00:46]} 27. Bd4 {[%emt 0:00:55]} Rad8 {[%emt 0:00:43]} 28. Rff1 {[%emt 0:00:48]} Re6 {[%emt 0:00:37]} 29. Rde1 {[%emt 0:01:40]} Rde8 {[%emt 0:00:29]} 30. b4 {[%emt 0:00:56]} Rd8 {[%emt 0:00:28]} 31. Bb3 {[%emt 0:01:25]} Ree8 {[%emt 0:00:07]} 32. Re3 {[%emt 0:02:02]} Bb5 {[%emt 0:00:58]} 33. Rd1 {[%emt 0:01:41]} Bc6 {[%emt 0:00:24]} 1/2-1/2

[Event "NED-ch U20 Girls 2019"]
[Site "Assen"]
[Date "2019.04.28"]
[Round "1.4"]
[White "Waardenburg, Marlinde"]
[Black "Waardenburg, Feline"]
[Result "1/2-1/2"]
[ECO "C29"]
[WhiteElo "1706"]
[BlackElo "1742"]
[Annotator "NA"]
[PlyCount "44"]
[EventDate "2019.04.28"]
[EventType "swiss"]
[EventCountry "NED"]
[SourceTitle "playchess.com"]
[Source "ChessBase"]
[SourceQuality "1"]
[TimeControl "40/5400+30:1800+30"]

1. e4 {[%emt 0:00:00]} e5 {[%emt 0:00:00]} 2. Nc3 {[%emt 0:00:00]} Nf6 {[%emt 0:00:00]} 3. f4 {[%emt 0:00:26]} d5 {[%emt 0:00:15]} 4. fxe5 {[%emt 0:00:31]} Nxe4 {[%emt 0:00:10]} 5. Qf3 {[%emt 0:00:34]} Nxc3 {[%emt 0:01:31]} 6. bxc3 {[%emt 0:00:19]} Be7 {[%emt 0:00:42]} 7. d4 {[%emt 0:02:13]} O-O {[%emt 0:00:22]} 8. Bd3 {[%emt 0:01:14]} f6 {[%emt 0:00:45]} 9. Qh5 {[%emt 0:01:51]} g6 {[%emt 0:00:18]} 10. Bxg6 {[%emt 0:01:50]} hxg6 {[%emt 0:00:11]} 11. Qxg6+ {[%emt 0:00:28]} Kh8 {[%emt 0:00:08]} 12. Nf3 {[%emt 0:00:25]} Qe8 {[%emt 0:00:33]} 13. Qh6+ {[%emt 0:00:34]} Kg8 {[%emt 0:00:11]} 14. O-O {[%emt 0:00:39]} fxe5 {[%emt 0:00:53]} 15. Bg5 {[%emt 0:01:32]} Nc6 {[%emt 0:00:29]} 16. Nh4 {[%emt 0:00:38]} Rxf1+ {[%emt 0:00:52]} 17. Rxf1 {[%emt 0:00:14]} Bf8 {[%emt 0:00:28]} 18. Rxf8+ {[%emt 0:02:14]} Qxf8 {[%emt 0:00:18]} 19. Qg6+ {[%emt 0:00:45]} Qg7 {[%emt 0:00:23]} 20. Qe8+ {[%emt 0:00:30]} Kh7 {[%emt 0:00:14]} 21. Qh5+ {[%emt 0:00:31]} Kg8 {[%emt 0:00:19]} 22. Qe8+ {[%emt 0:00:33]} Qf8 {[%emt 0:00:15]} 1/2-1/2

[Event "NED-ch U20 Girls 2019"]
[Site "Assen"]
[Date "2019.04.29"]
[Round "2.1"]
[White "Warnaar, Alisha"]
[Black "Waardenburg, Feline"]
[Result "0-1"]
[ECO "B19"]
[WhiteElo "1910"]
[BlackElo "1742"]
[Annotator "NA RC"]
[PlyCount "86"]
[EventDate "2019.04.28"]
[EventType "swiss"]
[EventCountry "NED"]
[SourceTitle "playchess.com"]
[Source "ChessBase"]
[SourceQuality "1"]
[TimeControl "40/5400+30:1800+30"]

1. e4 {[%emt 0:00:00]} c6 {[%emt 0:00:00]} 2. d4 {[%emt 0:00:00]} d5 {[%emt 0:00:00]} 3. Nc3 {[%emt 0:00:00]} dxe4 {[%emt 0:00:00]} 4. Nxe4 {[%emt 0:00:04]} Bf5 {[%emt 0:00:20]} 5. Ng3 {[%emt 0:00:09]} Bg6 {[%emt 0:00:14]} 6. h4 {[%emt 0:00:10]} h6 {[%emt 0:00:25]} 7. Nf3 {[%emt 0:00:28]} Nd7 {[%emt 0:00:45]} 8. h5 {[%emt 0:00:30]} Bh7 {[%emt 0:00:17]} 9. Bd3 {[%emt 0:00:13]} Bxd3 {[%emt 0:00:09]} 10. Qxd3 {[%emt 0:00:16]} e6 {[%emt 0:01:06]} 11. Bf4 {[%emt 0:00:44]} Qa5+ {[%emt 0:00:33]} 12. Bd2 {[%emt 0:00:26]} Qc7 {[%emt 0:00:24]} 13. O-O-O {[%emt 0:00:31]} O-O-O {[%emt 0:00:17]} 14. Ne4 {[%emt 0:00:54]} Ngf6 {[%emt 0:03:27]} 15. g3 {[%emt 0:01:20]} Nxe4 {[%emt 0:03:29]} 16. Qxe4 {[%emt 0:00:16]} Nf6 {[%emt 0:01:34]} 17. Qe2 {[%emt 0:00:44]} Bd6 {[%emt 0:02:08]} 18. c4 {[%emt 0:01:35]} c5 {[%emt 0:03:20]} 19. Bc3 {[%emt 0:11:04]} Rhe8 {[%emt 0:30:44]} 20. Kb1 {[%emt 0:07:20]} Kb8 {[%emt 0:04:03]} 21. dxc5 {[%emt 0:17:28]} Qxc5 {[%emt 0:02:37]} 22. Nd4 {[%emt 0:07:22]} a6 {[%emt 0:04:38]} 23. Rd2 {[%emt 0:13:44]} Ka8 {[%emt 0:06:00]} 24. Nb3 {[%emt 0:02:23]} Qf5+ {[%emt 0:01:34]} 25. Rc2 {[%emt 0:02:31]} Bc7 {[%emt 0:06:18]} 26. Nd4 {[%emt 0:03:19]} Qe4 {[%emt 0:03:27]} 27. Nf3 {[%emt 0:01:47]} (27. Rh4 $14 Qh7 28. Nb3) 27... Rd3 {[%emt 0:03:43]} 28. Qxe4 {[%emt 0:04:40]} Nxe4 {[%emt 0:00:11]} 29. Be5 {[%emt 0:02:25]} (29. Re1 $17 {might work better.} Nxg3 30. fxg3 Rxf3 31. Bxg7) 29... Bb6 {[%emt 0:02:51]} 30. Ne1 {[%emt 0:02:37]} Rd1+ {[%emt 0:01:00]} 31. Rc1 {[%emt 0:00:04]} Rxc1+ {[%emt 0:00:13]} 32. Kxc1 {[%emt 0:00:05]} Nxf2 {[%emt 0:00:09]} 33. Rf1 {[%emt 0:01:21] [#]} (33. Rh4 $17) 33... f6 $1 {[%emt 0:00:45]} 34. Bc3 {[%emt 0:02:58]} Rd8 $17 {[%emt 0:00:52]} (34... Rc8 $19 35. b3 Ne4) 35. Nf3 {[%emt 0:01:15]} e5 {[%emt 0:01:07]} 36. Kc2 {[%emt 0:02:03]} Ne4 {[%emt 0:01:50]} 37. Be1 {[%emt 0:00:32]} Nd6 {[%emt 0:02:09]} 38. b3 {[%emt 0:02:13]} Nf5 {[%emt 0:01:18]} 39. Kc3 {[%emt 0:04:32]} Rd1 {[%emt 0:02:01]} 40. b4 {[%emt 0:06:19]} Ne3 {[%emt 0:03:32]} 41. Rh1 {[%emt 0:30:19]} Bd4+ {[%emt 0:32:37]} 42. Kb3 {[%emt 0:01:26]} Rd3+ {[%emt 0:04:42]} 43. Ka4 {[%emt 0:00:09]} Nxc4 {[%emt 0:00:25]} 0-1

[Event "NED-ch U20 Girls 2019"]
[Site "Assen"]
[Date "2019.04.29"]
[Round "2.2"]
[White "Monteny, Pascalle"]
[Black "Waardenburg, Marlinde"]
[Result "0-1"]
[ECO "B03"]
[WhiteElo "1433"]
[BlackElo "1706"]
[Annotator "NA RC"]
[PlyCount "138"]
[EventDate "2019.04.28"]
[EventType "swiss"]
[EventCountry "NED"]
[SourceTitle "playchess.com"]
[Source "ChessBase"]
[SourceQuality "1"]
[TimeControl "40/5400+30:1800+30"]

1. e4 {[%emt 0:00:00]} Nf6 {[%emt 0:00:00]} 2. e5 {[%emt 0:00:00]} Nd5 {[%emt 0:00:00]} 3. d4 {[%emt 0:00:47]} d6 {[%emt 0:00:25]} 4. c4 {[%emt 0:01:43]} Nb6 {[%emt 0:00:53]} 5. exd6 {[%emt 0:01:17]} cxd6 {[%emt 0:00:22]} 6. Nc3 {[%emt 0:03:26]} g6 {[%emt 0:01:06]} 7. Be3 {[%emt 0:04:04]} Bg7 {[%emt 0:01:46]} 8. Rc1 {[%emt 0:04:41]} O-O {[%emt 0:06:31]} 9. Bd3 {[%emt 0:07:56]} d5 {[%emt 0:11:09]} 10. c5 {[%emt 0:20:03]} Nc4 {[%emt 0:00:55]} 11. b3 {[%emt 0:08:03]} Nxe3 {[%emt 0:03:23]} 12. fxe3 {[%emt 0:00:18]} e5 {[%emt 0:04:13]} 13. dxe5 {[%emt 0:16:07]} Nc6 {[%emt 0:21:54]} 14. Nf3 {[%emt 0:04:45]} Nxe5 {[%emt 0:06:46]} 15. Nxe5 {[%emt 0:06:53]} Bxe5 {[%emt 0:00:21]} 16. O-O {[%emt 0:12:03]} d4 {[%emt 0:07:52]} 17. exd4 {[%emt 0:01:15]} Qxd4+ {[%emt 0:01:30]} 18. Kh1 {[%emt 0:00:28]} Qh4 {[%emt 0:01:30]} 19. g3 {[%emt 0:04:53]} Bxg3 {[%emt 0:01:15]} 20. Qe2 {[%emt 0:00:36]} Bd7 {[%emt 0:05:22]} 21. Be4 {[%emt 0:00:36]} Rae8 {[%emt 0:03:52]} 22. Qg2 {[%emt 0:00:22]} Bf4 {[%emt 0:08:34]} 23. Rcd1 {[%emt 0:00:32]} Bc6 {[%emt 0:00:45]} 24. Bxc6 {[%emt 0:00:34]} bxc6 {[%emt 0:00:06]} 25. Qf2 {[%emt 0:00:27]} Qxf2 {[%emt 0:01:04]} 26. Rxf2 {[%emt 0:00:04]} Be3 {[%emt 0:00:37]} 27. Rf3 {[%emt 0:00:56]} Bxc5 {[%emt 0:00:59]} 28. Na4 {[%emt 0:00:37]} Bb6 {[%emt 0:02:09]} 29. Rc1 {[%emt 0:00:26]} Re6 {[%emt 0:01:40]} 30. Rfc3 {[%emt 0:00:32]} c5 {[%emt 0:02:58]} 31. Nxc5 {[%emt 0:00:31]} Bxc5 {[%emt 0:00:12]} 32. Rxc5 {[%emt 0:00:05]} Rfe8 {[%emt 0:00:23]} 33. a4 {[%emt 0:00:56]} Kg7 {[%emt 0:01:30]} 34. a5 {[%emt 0:00:29]} Rb8 {[%emt 0:02:11]} 35. Rb1 {[%emt 0:00:29]} Rb7 {[%emt 0:01:48]} 36. b4 {[%emt 0:00:28]} Ra6 {[%emt 0:01:12]} 37. Kg2 {[%emt 0:00:28]} h5 {[%emt 0:00:29]} 38. Kf3 {[%emt 0:00:27]} Rd6 {[%emt 0:00:41]} 39. Kf2 {[%emt 0:00:39]} Rd2+ {[%emt 0:00:27]} 40. Kg1 {[%emt 0:00:24]} Ra2 {[%emt 0:00:15]} 41. Rb3 {[%emt 0:10:14]} Rd7 {[%emt 0:06:31]} 42. Rb1 {[%emt 0:06:22]} Rb7 {[%emt 0:06:26]} 43. Rb3 {[%emt 0:01:34]} Ra4 {[%emt 0:00:46]} 44. Kf2 {[%emt 0:02:39]} Kf8 {[%emt 0:02:10]} 45. Kg3 {[%emt 0:04:29]} Ke8 {[%emt 0:03:40]} 46. Re3+ {[%emt 0:01:45]} Kd8 {[%emt 0:02:59]} 47. Rd3+ {[%emt 0:03:32]} Ke7 {[%emt 0:00:50]} 48. Re3+ {[%emt 0:00:30]} Kf8 {[%emt 0:00:33]} 49. Rb3 {[%emt 0:00:39]} Raxb4 {[%emt 0:01:33]} 50. Rxb4 {[%emt 0:01:31]} Rxb4 {[%emt 0:00:02]} 51. Rc8+ {[%emt 0:01:39]} Kg7 {[%emt 0:01:06]} 52. Rc7 {[%emt 0:00:13]} Ra4 {[%emt 0:01:58]} 53. Rxa7 {[%emt 0:00:12]} g5 {[%emt 0:00:59]} 54. a6 {[%emt 0:01:35]} Kf6 {[%emt 0:01:16]} 55. Kf3 {[%emt 0:00:40]} Ke6 {[%emt 0:01:00]} 56. Ra8 {[%emt 0:00:29]} Kd6 {[%emt 0:02:35]} 57. a7 {[%emt 0:00:34]} Kc6 {[%emt 0:03:09]} 58. Rc8+ {[%emt 0:00:32]} Kb7 {[%emt 0:00:12]} 59. a8=Q+ {[%emt 0:00:25]} Rxa8 {[%emt 0:00:10]} 60. Rxa8 {[%emt 0:00:03]} Kxa8 {[%emt 0:00:07]} 61. Ke4 {[%emt 0:00:33]} h4 {[%emt 0:02:09]} 62. Kf5 {[%emt 0:00:42]} f6 {[%emt 0:00:25]} 63. Kg4 {[%emt 0:00:37]} Kb7 {[%emt 0:00:08]} 64. Kf5 {[%emt 0:00:37]} Kc6 {[%emt 0:00:18]} 65. Ke4 {[%emt 0:00:27]} Kd6 {[%emt 0:00:18]} 66. h3 {[%emt 0:00:31]} Ke6 {[%emt 0:00:05]} 67. Kf3 {[%emt 0:00:27]} Kf5 {[%emt 0:00:06]} 68. Kf2 {[%emt 0:00:34]} Kf4 {[%emt 0:00:07]} 69. Kg2 {[%emt 0:00:23]} f5 {[%emt 0:00:07]} 0-1

[Event "NED-ch U20 Girls 2019"]
[Site "Assen"]
[Date "2019.04.29"]
[Round "2.3"]
[White "Duson, Robin"]
[Black "Van de Poel, Wyona"]
[Result "1-0"]
[ECO "D36"]
[WhiteElo "1981"]
[BlackElo "1584"]
[Annotator "NA RC"]
[PlyCount "51"]
[EventDate "2019.04.28"]
[EventType "swiss"]
[EventCountry "NED"]
[SourceTitle "playchess.com"]
[Source "ChessBase"]
[SourceQuality "1"]
[TimeControl "40/5400+30:1800+30"]

1. d4 {[%emt 0:00:00]} d5 {[%emt 0:00:00]} 2. c4 {[%emt 0:00:00]} e6 {[%emt 0:00:00]} 3. Nc3 {[%emt 0:00:00]} Nf6 {[%emt 0:00:03]} 4. cxd5 {[%emt 0:00:01]} exd5 {[%emt 0:00:19]} 5. Bg5 {[%emt 0:00:08]} Be7 {[%emt 0:00:47]} 6. e3 {[%emt 0:01:13]} c6 {[%emt 0:00:18]} 7. Bd3 {[%emt 0:00:07]} Nbd7 {[%emt 0:00:15]} 8. Qc2 {[%emt 0:00:15]} Nf8 {[%emt 0:04:40]} 9. Nf3 {[%emt 0:07:40]} Ne6 {[%emt 0:00:31]} 10. Bh4 {[%emt 0:00:22]} g6 {[%emt 0:00:40]} 11. O-O {[%emt 0:02:39]} O-O {[%emt 0:01:47]} 12. Rab1 {[%emt 0:05:04]} Ng7 {[%emt 0:06:27]} 13. b4 {[%emt 0:02:52]} a6 {[%emt 0:01:04]} 14. a4 {[%emt 0:05:24]} Bf5 {[%emt 0:02:47]} 15. Bxf5 {[%emt 0:08:04]} Nxf5 {[%emt 0:00:16]} 16. Bxf6 {[%emt 0:00:25]} Bxf6 {[%emt 0:00:12]} 17. b5 {[%emt 0:00:53]} axb5 {[%emt 0:04:06]} 18. axb5 {[%emt 0:00:33] [#]} Kg7 $146 {[%emt 0:09:32] D36: Queen's Gambit Declined: Exchange Variation: Main line (5 Bg5 c6 6 Qc2)} ({Predecessor:} 18... Qa5 19. bxc6 bxc6 20. Rfc1 Rfc8 21. h3 Be7 22. Qd3 Qd8 23. Rb3 Ba3 24. Rcb1 Bf8 25. Ne2 Ra2 26. Nc1 {½-½ (48) Riazantsev,A (2689)-Artemiev,V (2621) Yerevan 2014}) 19. Na4 {[%emt 0:07:30]} Be7 $2 {[%emt 0:08:41]} (19... Qc7 $11 {and Black is okay.}) 20. bxc6 {[%emt 0:02:23]} bxc6 {[%emt 0:17:52] [#]} 21. Qxc6 {[%emt 0:03:34]} ({White should play} 21. Nb6 $1 $18) 21... Rc8 {[%emt 0:04:37]} 22. Qb5 {[%emt 0:03:12]} Qd6 {[%emt 0:04:18]} 23. Nc5 {[%emt 0:06:53]} Rfd8 {[%emt 0:04:38]} 24. Nb7 {[%emt 0:01:38]} Rb8 {[%emt 0:00:41]} 25. Nxd6 {[%emt 0:00:21]} Rxb5 {[%emt 0:00:13]} 26. Nxb5 $18 {[%emt 0:00:06]} 1-0

[Event "NED-ch U20 Girls 2019"]
[Site "Assen"]
[Date "2019.04.29"]
[Round "2.4"]
[White "Basa, Manasvita"]
[Black "Koning, Femke"]
[Result "1/2-1/2"]
[ECO "C29"]
[WhiteElo "1532"]
[BlackElo "1566"]
[Annotator "NA RC"]
[PlyCount "72"]
[EventDate "2019.04.28"]
[EventType "swiss"]
[EventCountry "NED"]
[SourceTitle "playchess.com"]
[Source "ChessBase"]
[SourceQuality "1"]
[TimeControl "40/5400+30:1800+30"]

1. e4 {[%emt 0:00:00]} e5 {[%emt 0:00:00]} 2. Nc3 {[%emt 0:00:00]} Nf6 {[%emt 0:00:08]} 3. f4 {[%emt 0:00:00]} Nc6 {[%emt 0:01:19]} 4. fxe5 {[%emt 0:00:01]} Nxe5 {[%emt 0:00:30]} 5. d4 {[%emt 0:00:08]} Nc6 {[%emt 0:02:08]} 6. Nf3 {[%emt 0:01:00]} Bb4 {[%emt 0:02:33]} 7. Bd3 {[%emt 0:01:20]} d6 {[%emt 0:01:10]} 8. O-O {[%emt 0:04:54]} Bg4 {[%emt 0:04:51]} 9. Be3 {[%emt 0:06:14]} Qe7 {[%emt 0:06:34]} 10. Re1 {[%emt 0:07:20]} O-O {[%emt 0:07:25]} 11. a3 {[%emt 0:16:44]} Ba5 {[%emt 0:08:13]} 12. b4 {[%emt 0:12:27]} Bb6 {[%emt 0:00:03]} 13. Nd5 {[%emt 0:01:42]} Nxd5 {[%emt 0:02:19]} 14. exd5 {[%emt 0:00:09]} Bxf3 {[%emt 0:05:19]} 15. Qxf3 {[%emt 0:12:16]} Nxd4 {[%emt 0:06:12]} 16. Qh3 {[%emt 0:00:00]} g6 {[%emt 0:02:51]} 17. c3 {[%emt 0:09:46]} Qf6 {[%emt 0:20:36]} 18. cxd4 {[%emt 0:00:52]} Bxd4 {[%emt 0:02:13]} 19. Bxd4 {[%emt 0:08:22]} Qxd4+ {[%emt 0:00:01]} 20. Kh1 {[%emt 0:00:14]} Qxd5 {[%emt 0:01:15]} 21. Be4 {[%emt 0:02:35]} Qb5 {[%emt 0:01:10]} 22. Qf3 {[%emt 0:00:41]} c6 {[%emt 0:01:19]} 23. h4 {[%emt 0:00:58]} Rfe8 {[%emt 0:03:26]} 24. Rf1 {[%emt 0:01:34]} f5 {[%emt 0:03:09]} 25. Qb3+ {[%emt 0:01:54]} Kg7 {[%emt 0:01:00]} 26. Bf3 {[%emt 0:01:05]} Re7 {[%emt 0:02:53]} 27. Rae1 {[%emt 0:02:27]} Rae8 {[%emt 0:00:41]} 28. Qc3+ {[%emt 0:00:28]} Kf7 {[%emt 0:01:56]} 29. h5 {[%emt 0:00:35]} Rxe1 {[%emt 0:02:25]} 30. Rxe1 {[%emt 0:00:09]} Rxe1+ {[%emt 0:00:02]} 31. Qxe1 {[%emt 0:00:08]} Qe5 {[%emt 0:01:09]} 32. hxg6+ {[%emt 0:01:27]} hxg6 {[%emt 0:00:10]} 33. Qh4 {[%emt 0:00:04]} d5 {[%emt 0:03:16]} 34. Qh7+ {[%emt 0:00:24]} Qg7 {[%emt 0:00:09]} 35. Qh2 {[%emt 0:00:21]} Qa1+ {[%emt 0:00:37]} 36. Qg1 {[%emt 0:00:13]} Qh8+ {[%emt 0:04:46]} 1/2-1/2